[Event "Late-Titled-Tuesday-Blitz-January-16-2024"]
[Site "Chess.com"]
[Date "2024.01.16"]
[Round "3"]
[White "chesspreceptor"]
[Black "carloseduar100"]
[Result "1-0"]
[WhiteElo "2570"]
[BlackElo "2281"]
[TimeControl "180+1"]
[EndTime "14:27:17 PST"]
[Termination "chesspreceptor won on time"]

1. e4 {[%clk 0:03:00.9]} 1... e6 {[%clk 0:03:00.2]} 2. Nc3 {[%clk 0:02:54.9]}
2... d5 {[%clk 0:03:01.1]} 3. d4 {[%clk 0:02:53.3]} 3... Nf6 {[%clk 0:03:00.4]}
4. e5 {[%clk 0:02:52]} 4... Nfd7 {[%clk 0:03:00.3]} 5. f4 {[%clk 0:02:50.1]}
5... c5 {[%clk 0:03:00.8]} 6. Nf3 {[%clk 0:02:50.7]} 6... Nc6 {[%clk 0:03:01]}
7. Be3 {[%clk 0:02:51.5]} 7... Qb6 {[%clk 0:03:01.3]} 8. Qd2 {[%clk 0:02:52.3]}
8... Qxb2 {[%clk 0:03:00.4]} 9. Rb1 {[%clk 0:02:48]} 9... Qa3 {[%clk 0:03:00.5]}
10. Bb5 {[%clk 0:02:32.3]} 10... Nxd4 {[%clk 0:02:51.4]} 11. Nxd4 {[%clk
0:02:30.3]} 11... cxd4 {[%clk 0:02:52.3]} 12. Bxd4 {[%clk 0:02:29.9]} 12... a6
{[%clk 0:02:18.6]} 13. Bxd7+ {[%clk 0:02:19.6]} 13... Kxd7 {[%clk 0:02:17.8]}
14. f5 {[%clk 0:02:19.3]} 14... Bc5 {[%clk 0:02:13.6]} 15. O-O {[%clk 0:02:13]}
15... b6 {[%clk 0:02:06.8]} 16. fxe6+ {[%clk 0:02:08.2]} 16... fxe6 {[%clk
0:02:06]} 17. Rf7+ {[%clk 0:02:00]} 17... Kc6 {[%clk 0:02:06.3]} 18. Ne2 {[%clk
0:01:54.8]} 18... Bd7 {[%clk 0:01:38.8]} 19. Bxc5 {[%clk 0:01:45.5]} 19... bxc5
{[%clk 0:01:37.1]} 20. c4 {[%clk 0:01:42]} 20... Rab8 {[%clk 0:01:30.5]} 21.
cxd5+ {[%clk 0:01:32.3]} 21... exd5 {[%clk 0:01:31.4]} 22. Rd1 {[%clk
0:01:32.4]} 22... Be6 {[%clk 0:01:26.3]} 23. Re7 {[%clk 0:01:32.5]} 23... Bg8
{[%clk 0:00:50.8]} 24. Nd4+ {[%clk 0:01:29.3]} 24... cxd4 {[%clk 0:00:29.3]} 25.
Rc1+ {[%clk 0:01:27]} 25... Kb5 {[%clk 0:00:20.6]} 26. Rb1+ {[%clk 0:01:25.9]}
26... Kc6 {[%clk 0:00:20.6]} 27. Qc1+ {[%clk 0:01:12.7]} 27... Qxc1+ {[%clk
0:00:19.3]} 28. Rxc1+ {[%clk 0:01:13.6]} 28... Kb5 {[%clk 0:00:15]} 29. Rb1+
{[%clk 0:01:14.2]} 29... Kc4 {[%clk 0:00:15.3]} 30. Rxb8 {[%clk 0:01:15.1]}
30... d3 {[%clk 0:00:15.2]} 31. Kf2 {[%clk 0:01:14.8]} 31... Kd4 {[%clk
0:00:14.4]} 32. Ree8 {[%clk 0:01:11.6]} 32... h5 {[%clk 0:00:14.1]} 33. Rxg8
{[%clk 0:01:11.4]} 33... Rh6 {[%clk 0:00:14.2]} 34. Rxg7 {[%clk 0:01:10.1]}
34... Re6 {[%clk 0:00:14.1]} 35. Rg5 {[%clk 0:01:09.2]} 35... h4 {[%clk
0:00:13.8]} 36. Rb4+ {[%clk 0:01:06.4]} 36... Kc3 {[%clk 0:00:13.9]} 37. Rb3+
{[%clk 0:01:04.8]} 37... Kc2 {[%clk 0:00:14.5]} 38. Ke3 {[%clk 0:00:59.7]} 38...
d2 {[%clk 0:00:13.7]} 39. Rd3 {[%clk 0:00:59.3]} 39... d4+ {[%clk 0:00:12.4]}
40. Kxd4 {[%clk 0:00:57.3]} 40... d1=Q {[%clk 0:00:04.4]} 41. Rxd1 {[%clk
0:00:57]} 41... Kxd1 {[%clk 0:00:05.3]} 42. Kd5 {[%clk 0:00:55.7]} 42... Rb6
{[%clk 0:00:04.9]} 43. e6 {[%clk 0:00:56]} 43... Rb5+ {[%clk 0:00:05.3]} 44. Kd6
{[%clk 0:00:48.3]} 44... Rxg5 {[%clk 0:00:06.2]} 45. e7 {[%clk 0:00:48.9]} 45...
Rg8 {[%clk 0:00:05.1]} 46. g4 {[%clk 0:00:47.1]} 1-0

[Event "Late-Titled-Tuesday-Blitz-January-16-2024"]
[Site "Chess.com"]
[Date "2024.01.16"]
[Round "3"]
[White "GrotBchess"]
[Black "DonJuanEGenaro"]
[Result "1-0"]
[WhiteElo "2309"]
[BlackElo "1910"]
[TimeControl "180+1"]
[EndTime "14:27:20 PST"]
[Termination "GrotBchess won on time"]

1. e4 {[%clk 0:03:00.9]} 1... c5 {[%clk 0:02:58.3]} 2. Nf3 {[%clk 0:03:00.2]}
2... Nc6 {[%clk 0:02:57.8]} 3. Bb5 {[%clk 0:02:59.2]} 3... e6 {[%clk 0:02:57.4]}
4. O-O {[%clk 0:02:57.9]} 4... Nge7 {[%clk 0:02:56.8]} 5. Re1 {[%clk 0:02:56.5]}
5... a6 {[%clk 0:02:54.1]} 6. Bf1 {[%clk 0:02:55.9]} 6... Ng6 {[%clk 0:02:51.8]}
7. c3 {[%clk 0:02:55.1]} 7... Be7 {[%clk 0:02:50.6]} 8. d4 {[%clk 0:02:54.5]}
8... cxd4 {[%clk 0:02:48.7]} 9. cxd4 {[%clk 0:02:55.4]} 9... d5 {[%clk
0:02:48.6]} 10. e5 {[%clk 0:02:55.2]} 10... O-O {[%clk 0:02:29]} 11. Nc3 {[%clk
0:02:53.5]} 11... f6 {[%clk 0:02:27.2]} 12. exf6 {[%clk 0:02:51.6]} 12... Bxf6
{[%clk 0:02:26.2]} 13. Bd3 {[%clk 0:02:43.1]} 13... Nxd4 {[%clk 0:02:10.1]} 14.
Bxg6 {[%clk 0:02:40.6]} 14... Nxf3+ {[%clk 0:02:08.6]} 15. Qxf3 {[%clk
0:02:40.2]} 15... hxg6 {[%clk 0:01:57.2]} 16. Qg3 {[%clk 0:02:40.1]} 16... Bh4
{[%clk 0:01:36.7]} 17. Qe5 {[%clk 0:02:15.4]} 17... Bxf2+ {[%clk 0:01:35.4]} 18.
Kh1 {[%clk 0:02:14.2]} 18... Bxe1 {[%clk 0:01:27.1]} 19. Qxe1 {[%clk 0:02:12.6]}
19... e5 {[%clk 0:01:20.2]} 20. h4 {[%clk 0:02:01.2]} 20... Qd6 {[%clk
0:01:06.6]} 21. Bg5 {[%clk 0:01:59.3]} 21... e4 {[%clk 0:01:03]} 22. Rd1 {[%clk
0:01:57.1]} 22... Qc5 {[%clk 0:00:45.4]} 23. Rxd5 {[%clk 0:01:49.2]} 23... Qc4
{[%clk 0:00:36.5]} 24. Qxe4 {[%clk 0:01:36.2]} 24... Qf1+ {[%clk 0:00:26]} 25.
Kh2 {[%clk 0:01:34.7]} 25... Bf5 {[%clk 0:00:23.8]} 26. Qf4 {[%clk 0:01:17.8]}
26... Qxf4+ {[%clk 0:00:21.7]} 27. Bxf4 {[%clk 0:01:18.7]} 27... Be6 {[%clk
0:00:18.8]} 28. Rd4 {[%clk 0:01:18.3]} 28... Rac8 {[%clk 0:00:15.9]} 29. Bg5
{[%clk 0:01:13.1]} 29... Rc4 {[%clk 0:00:15.2]} 30. Rd6 {[%clk 0:01:11.7]} 30...
Bf7 {[%clk 0:00:14.3]} 31. a4 {[%clk 0:01:08.2]} 31... Re8 {[%clk 0:00:14.2]}
32. Rd7 {[%clk 0:01:04.3]} 32... Rg4 {[%clk 0:00:11.6]} 33. Rxb7 {[%clk
0:00:58.7]} 33... Re1 {[%clk 0:00:09.6]} 34. Rb6 {[%clk 0:00:47.3]} 34... Rf1
{[%clk 0:00:05.9]} 35. Kh3 {[%clk 0:00:31.4]} 35... Rd4 {[%clk 0:00:00.6]} 36.
Rb8+ {[%clk 0:00:28.8]} 1-0

[Event "Late-Titled-Tuesday-Blitz-January-16-2024"]
[Site "Chess.com"]
[Date "2024.01.16"]
[Round "3"]
[White "Rikikits"]
[Black "Vlad_Lukiianchuk"]
[Result "1-0"]
[WhiteElo "2831"]
[BlackElo "2617"]
[TimeControl "180+1"]
[EndTime "14:27:25 PST"]
[Termination "Rikikits won on time"]

1. d4 {[%clk 0:03:00.9]} 1... e6 {[%clk 0:02:56.5]} 2. Nf3 {[%clk 0:02:57.6]}
2... f5 {[%clk 0:02:54.7]} 3. e3 {[%clk 0:02:55.2]} 3... Nf6 {[%clk 0:02:53.5]}
4. Be2 {[%clk 0:02:55.6]} 4... b6 {[%clk 0:02:49.6]} 5. O-O {[%clk 0:02:55.2]}
5... Bb7 {[%clk 0:02:49.3]} 6. c4 {[%clk 0:02:55.5]} 6... Be7 {[%clk 0:02:28.2]}
7. Nc3 {[%clk 0:02:54.2]} 7... O-O {[%clk 0:02:23.5]} 8. Ne5 {[%clk 0:02:47.7]}
8... d6 {[%clk 0:02:16.7]} 9. Nd3 {[%clk 0:02:47]} 9... g5 {[%clk 0:02:09.6]}
10. Bf3 {[%clk 0:02:45.7]} 10... c6 {[%clk 0:02:05.7]} 11. g3 {[%clk 0:02:43.5]}
11... d5 {[%clk 0:01:59.8]} 12. b3 {[%clk 0:02:41.2]} 12... Nbd7 {[%clk
0:01:56.2]} 13. Bb2 {[%clk 0:02:35.4]} 13... Ba6 {[%clk 0:01:53.2]} 14. Qc2
{[%clk 0:02:32.7]} 14... dxc4 {[%clk 0:01:45.9]} 15. bxc4 {[%clk 0:02:31]} 15...
Bxc4 {[%clk 0:01:45.2]} 16. Bxc6 {[%clk 0:02:29.8]} 16... Rc8 {[%clk 0:01:44.9]}
17. Bg2 {[%clk 0:02:30.4]} 17... b5 {[%clk 0:01:24.9]} 18. a3 {[%clk 0:01:48.8]}
18... a5 {[%clk 0:01:21.7]} 19. Qb1 {[%clk 0:01:48.1]} 19... b4 {[%clk
0:01:14.9]} 20. axb4 {[%clk 0:01:49]} 20... axb4 {[%clk 0:01:14.7]} 21. Na4
{[%clk 0:01:47.7]} 21... f4 {[%clk 0:01:04.9]} 22. exf4 {[%clk 0:01:36.7]} 22...
gxf4 {[%clk 0:01:03.4]} 23. Nxf4 {[%clk 0:01:36.9]} 23... Bd6 {[%clk 0:00:42.1]}
24. Nd3 {[%clk 0:01:28.9]} 24... Nd5 {[%clk 0:00:32.5]} 25. Ndc5 {[%clk
0:01:23.5]} 25... Nxc5 {[%clk 0:00:26.2]} 26. Nxc5 {[%clk 0:01:22.1]} 26... Bxc5
{[%clk 0:00:24.5]} 27. dxc5 {[%clk 0:01:22.4]} 27... Bxf1 {[%clk 0:00:23.6]} 28.
Qxf1 {[%clk 0:01:21.6]} 28... Nc3 {[%clk 0:00:22.2]} 29. Qc4 {[%clk 0:01:19]}
29... Qf6 {[%clk 0:00:20.4]} 30. Rf1 {[%clk 0:01:13.6]} 30... Qf5 {[%clk
0:00:10.3]} 31. c6 {[%clk 0:01:08.7]} 31... Nd5 {[%clk 0:00:07.6]} 32. Qd4
{[%clk 0:01:05.8]} 32... Nc3 {[%clk 0:00:04.9]} 33. Qxb4 {[%clk 0:01:02.1]}
33... Ne2+ {[%clk 0:00:03.5]} 34. Kh1 {[%clk 0:01:01]} 34... Rb8 {[%clk
0:00:02.9]} 35. Qd2 {[%clk 0:00:52.5]} 35... Qh5 {[%clk 0:00:03]} 36. Ba1 {[%clk
0:00:40.8]} 36... Rbc8 {[%clk 0:00:03]} 37. Qb2 {[%clk 0:00:40.3]} 37... e5
{[%clk 0:00:03.5]} 38. Bd5+ {[%clk 0:00:38.3]} 38... Kg7 {[%clk 0:00:04.1]} 39.
Qxe5+ {[%clk 0:00:38.1]} 39... Qxe5 {[%clk 0:00:04.5]} 40. Bxe5+ {[%clk
0:00:38.9]} 40... Kg6 {[%clk 0:00:04.6]} 41. Kg2 {[%clk 0:00:36.4]} 41... Rfe8
{[%clk 0:00:04.5]} 42. f4 {[%clk 0:00:36.7]} 42... Red8 {[%clk 0:00:02.7]} 43.
Be4+ {[%clk 0:00:35.7]} 43... Kf7 {[%clk 0:00:03]} 44. c7 {[%clk 0:00:32]} 44...
Rd2 {[%clk 0:00:02.3]} 45. Rf2 {[%clk 0:00:32.4]} 1-0

[Event "Late-Titled-Tuesday-Blitz-January-16-2024"]
[Site "Chess.com"]
[Date "2024.01.16"]
[Round "3"]
[White "ChessicallyInclined"]
[Black "Msb2"]
[Result "0-1"]
[WhiteElo "2723"]
[BlackElo "3041"]
[TimeControl "180+1"]
[EndTime "14:27:27 PST"]
[Termination "Msb2 won by resignation"]

1. e4 {[%clk 0:03:00.9]} 1... e6 {[%clk 0:03:00.3]} 2. d4 {[%clk 0:03:00.1]}
2... d5 {[%clk 0:03:00.9]} 3. Nc3 {[%clk 0:03:00.4]} 3... Nf6 {[%clk 0:03:01]}
4. e5 {[%clk 0:03:00.3]} 4... Nfd7 {[%clk 0:03:01.7]} 5. f4 {[%clk 0:03:01]}
5... c5 {[%clk 0:03:02.4]} 6. Nf3 {[%clk 0:03:01.7]} 6... Nc6 {[%clk 0:03:03.2]}
7. Be3 {[%clk 0:03:02.3]} 7... a6 {[%clk 0:03:03.9]} 8. a3 {[%clk 0:03:02.7]}
8... cxd4 {[%clk 0:03:03.9]} 9. Nxd4 {[%clk 0:03:03]} 9... Bc5 {[%clk
0:03:04.6]} 10. Qd2 {[%clk 0:03:03.5]} 10... g5 {[%clk 0:03:04]} 11. g3 {[%clk
0:02:52.4]} 11... gxf4 {[%clk 0:03:01.4]} 12. gxf4 {[%clk 0:02:53.3]} 12... Bxd4
{[%clk 0:03:00]} 13. Bxd4 {[%clk 0:02:53.2]} 13... Nxd4 {[%clk 0:03:00.9]} 14.
Qxd4 {[%clk 0:02:53.3]} 14... Qh4+ {[%clk 0:03:01.6]} 15. Qf2 {[%clk 0:02:44.7]}
15... Qxf2+ {[%clk 0:03:01.7]} 16. Kxf2 {[%clk 0:02:45.6]} 16... f6 {[%clk
0:03:02.5]} 17. exf6 {[%clk 0:02:45.5]} 17... Nxf6 {[%clk 0:03:03.4]} 18. Bd3
{[%clk 0:02:36.6]} 18... Bd7 {[%clk 0:03:03.3]} 19. Rhg1 {[%clk 0:02:31.7]}
19... Kf7 {[%clk 0:03:01.9]} 20. Raf1 {[%clk 0:02:28.4]} 20... Rhg8 {[%clk
0:02:58.4]} 21. Rxg8 {[%clk 0:02:19.2]} 21... Rxg8 {[%clk 0:02:58]} 22. h3
{[%clk 0:02:04.9]} 22... h6 {[%clk 0:02:32.4]} 23. Ne2 {[%clk 0:01:58.1]} 23...
Nh5 {[%clk 0:02:28.8]} 24. c4 {[%clk 0:01:38.5]} 24... dxc4 {[%clk 0:02:24.7]}
25. Bxc4 {[%clk 0:01:39.4]} 25... Kf6 {[%clk 0:02:25.2]} 26. Ke3 {[%clk
0:01:27.3]} 26... Rg2 {[%clk 0:02:04.3]} 27. Rf2 {[%clk 0:01:11.3]} 27... Rxf2
{[%clk 0:02:03.7]} 28. Kxf2 {[%clk 0:01:12.2]} 28... e5 {[%clk 0:02:04.4]} 29.
fxe5+ {[%clk 0:01:10.7]} 29... Kxe5 {[%clk 0:02:05.3]} 30. h4 {[%clk 0:01:10]}
30... Ng7 {[%clk 0:02:04.3]} 31. Ng3 {[%clk 0:01:05.8]} 31... Kf4 {[%clk
0:02:04]} 32. Be2 {[%clk 0:01:04.2]} 32... Bg4 {[%clk 0:01:54.1]} 33. Bf1 {[%clk
0:00:58]} 33... Ne6 {[%clk 0:01:44.8]} 34. Bg2 {[%clk 0:00:52.6]} 34... b6
{[%clk 0:01:44.6]} 35. Bb7 {[%clk 0:00:48]} 35... Nc5 {[%clk 0:01:44.6]} 36. Bd5
{[%clk 0:00:41]} 36... Nd3+ {[%clk 0:01:43.2]} 37. Kg2 {[%clk 0:00:40.7]} 37...
Nxb2 {[%clk 0:01:43.8]} 38. Nf1 {[%clk 0:00:36.3]} 38... Nd1 {[%clk 0:01:40.9]}
39. Bb7 {[%clk 0:00:33.1]} 39... a5 {[%clk 0:01:35.6]} 40. Nd2 {[%clk
0:00:31.7]} 40... Be6 {[%clk 0:01:33.6]} 41. Bf3 {[%clk 0:00:27.2]} 41... Ne3+
{[%clk 0:01:31.6]} 42. Kf2 {[%clk 0:00:27.5]} 42... Nc2 {[%clk 0:01:32.5]} 43.
a4 {[%clk 0:00:25.9]} 43... Nd4 {[%clk 0:01:30.8]} 44. Bd1 {[%clk 0:00:24.4]}
44... Bd5 {[%clk 0:01:30.4]} 45. Nf1 {[%clk 0:00:21.3]} 45... Nf5 {[%clk
0:01:30.3]} 46. Bc2 {[%clk 0:00:20.7]} 46... Nd6 {[%clk 0:01:25]} 47. Ne3 {[%clk
0:00:20.8]} 47... Bc6 {[%clk 0:01:23.9]} 48. Bb3 {[%clk 0:00:19.4]} 48... Ne4+
{[%clk 0:01:23.7]} 49. Ke2 {[%clk 0:00:19.3]} 49... Ng3+ {[%clk 0:01:18.2]} 50.
Kd3 {[%clk 0:00:19.2]} 50... Nf5 {[%clk 0:01:18.7]} 51. Nc4 {[%clk 0:00:16.3]}
51... Nxh4 {[%clk 0:01:11]} 52. Nxb6 {[%clk 0:00:16.4]} 52... Nf3 {[%clk
0:01:11.9]} 53. Kc3 {[%clk 0:00:14.8]} 53... h5 {[%clk 0:01:09.7]} 54. Be6
{[%clk 0:00:13]} 54... Ne5 {[%clk 0:00:58.1]} 55. Kd4 {[%clk 0:00:09.4]} 55...
Bf3 {[%clk 0:00:58.3]} 56. Kc5 {[%clk 0:00:06.6]} 56... h4 {[%clk 0:00:58.5]}
57. Kb5 {[%clk 0:00:06.8]} 57... Bg4 {[%clk 0:00:59]} 58. Bd5 {[%clk 0:00:07.1]}
58... h3 {[%clk 0:00:58.9]} 59. Kxa5 {[%clk 0:00:07.5]} 59... h2 {[%clk
0:00:59.3]} 60. Kb4 {[%clk 0:00:02.6]} 60... Bf3 {[%clk 0:00:59.5]} 61. a5
{[%clk 0:00:03.2]} 61... h1=Q {[%clk 0:00:59.2]} 0-1

[Event "Late-Titled-Tuesday-Blitz-January-16-2024"]
[Site "Chess.com"]
[Date "2024.01.16"]
[Round "3"]
[White "iturrizaga"]
[Black "The_Sherman_Variation"]
[Result "1-0"]
[WhiteElo "3018"]
[BlackElo "2690"]
[TimeControl "180+1"]
[EndTime "14:27:27 PST"]
[Termination "iturrizaga won by resignation"]

1. c4 {[%clk 0:02:56.8]} 1... c5 {[%clk 0:02:58.6]} 2. Nf3 {[%clk 0:02:56.6]}
2... Nf6 {[%clk 0:02:58.4]} 3. Nc3 {[%clk 0:02:56.8]} 3... Nc6 {[%clk
0:02:57.9]} 4. d4 {[%clk 0:02:56.6]} 4... cxd4 {[%clk 0:02:57.9]} 5. Nxd4 {[%clk
0:02:57.5]} 5... g6 {[%clk 0:02:56.1]} 6. g3 {[%clk 0:02:56.7]} 6... Bg7 {[%clk
0:02:55.9]} 7. Bg2 {[%clk 0:02:57.4]} 7... O-O {[%clk 0:02:56.1]} 8. O-O {[%clk
0:02:57.7]} 8... Qa5 {[%clk 0:02:56.7]} 9. e3 {[%clk 0:02:58]} 9... Qh5 {[%clk
0:02:47]} 10. Qxh5 {[%clk 0:02:41.6]} 10... Nxh5 {[%clk 0:02:47.9]} 11. Rd1
{[%clk 0:02:41.5]} 11... Nf6 {[%clk 0:02:44.7]} 12. b3 {[%clk 0:02:39.8]} 12...
Rb8 {[%clk 0:02:39.7]} 13. Ba3 {[%clk 0:02:38.9]} 13... Re8 {[%clk 0:02:37.9]}
14. Rac1 {[%clk 0:02:37.1]} 14... Nxd4 {[%clk 0:02:26.4]} 15. exd4 {[%clk
0:02:38]} 15... d6 {[%clk 0:02:24.7]} 16. c5 {[%clk 0:02:38.4]} 16... dxc5
{[%clk 0:02:22.5]} 17. dxc5 {[%clk 0:02:38.6]} 17... Bf5 {[%clk 0:02:18.3]} 18.
h3 {[%clk 0:02:19.6]} 18... h5 {[%clk 0:02:17.6]} 19. Nb5 {[%clk 0:02:08.1]}
19... a6 {[%clk 0:02:16.9]} 20. Nd4 {[%clk 0:02:08.5]} 20... Be4 {[%clk
0:02:14.9]} 21. c6 {[%clk 0:02:08.8]} 21... bxc6 {[%clk 0:02:04.6]} 22. Nxc6
{[%clk 0:02:07.3]} 22... Rb7 {[%clk 0:02:00.5]} 23. Bf1 {[%clk 0:01:55.6]} 23...
Nd5 {[%clk 0:01:49.6]} 24. Re1 {[%clk 0:01:36.2]} 24... Bf3 {[%clk 0:01:34.3]}
25. Ne5 {[%clk 0:00:51.4]} 25... Bxe5 {[%clk 0:01:27.4]} 26. Rxe5 {[%clk
0:00:52.3]} 26... Rb6 {[%clk 0:01:18.6]} 27. Rc4 {[%clk 0:00:25.1]} 27... e6
{[%clk 0:01:14.7]} 28. Rd4 {[%clk 0:00:25.3]} 28... Nc7 {[%clk 0:01:02]} 29. Rd7
{[%clk 0:00:21.3]} 29... Nb5 {[%clk 0:00:57.4]} 30. Bc5 {[%clk 0:00:20.9]} 30...
Rc6 {[%clk 0:00:55.8]} 31. b4 {[%clk 0:00:21.1]} 31... Rb8 {[%clk 0:00:41.6]}
32. a4 {[%clk 0:00:20.8]} 32... Nc7 {[%clk 0:00:30]} 33. Bd6 {[%clk 0:00:21]}
33... Rc8 {[%clk 0:00:28.6]} 34. Rc5 {[%clk 0:00:19]} 34... Rxc5 {[%clk
0:00:27.2]} 35. bxc5 {[%clk 0:00:19.9]} 35... Ne8 {[%clk 0:00:20.6]} 36. Bxa6
{[%clk 0:00:14.3]} 36... Ra8 {[%clk 0:00:20.8]} 37. Bb5 {[%clk 0:00:12.9]} 37...
Nf6 {[%clk 0:00:19.5]} 38. Re7 {[%clk 0:00:10.6]} 38... Nd5 {[%clk 0:00:19.3]}
39. Re8+ {[%clk 0:00:11.1]} 39... Rxe8 {[%clk 0:00:18.8]} 40. Bxe8 {[%clk
0:00:12]} 40... Nb4 {[%clk 0:00:18.3]} 41. a5 {[%clk 0:00:12.5]} 41... Na6
{[%clk 0:00:18.4]} 42. Bb5 {[%clk 0:00:12.1]} 42... Nb4 {[%clk 0:00:18.9]} 43.
a6 {[%clk 0:00:11.8]} 43... f6 {[%clk 0:00:19.3]} 44. a7 {[%clk 0:00:11.7]}
44... Kf7 {[%clk 0:00:19.3]} 45. c6 {[%clk 0:00:11.5]} 1-0

[Event "Late-Titled-Tuesday-Blitz-January-16-2024"]
[Site "Chess.com"]
[Date "2024.01.16"]
[Round "3"]
[White "Heretoflag"]
[Black "tarno17"]
[Result "0-1"]
[WhiteElo "2370"]
[BlackElo "2181"]
[TimeControl "180+1"]
[EndTime "14:27:29 PST"]
[Termination "tarno17 won on time"]

1. e4 {[%clk 0:02:58.9]} 1... c5 {[%clk 0:02:58]} 2. Nf3 {[%clk 0:02:56.8]} 2...
e6 {[%clk 0:02:56.8]} 3. g3 {[%clk 0:02:56.3]} 3... a6 {[%clk 0:02:55.6]} 4. Bg2
{[%clk 0:02:56.5]} 4... d6 {[%clk 0:02:52.8]} 5. O-O {[%clk 0:02:56.7]} 5... Nc6
{[%clk 0:02:52.3]} 6. Re1 {[%clk 0:02:55.6]} 6... Nf6 {[%clk 0:02:46.1]} 7. c3
{[%clk 0:02:54.8]} 7... Be7 {[%clk 0:02:36.9]} 8. d3 {[%clk 0:02:41.2]} 8... O-O
{[%clk 0:02:32.3]} 9. Nbd2 {[%clk 0:02:38.7]} 9... b5 {[%clk 0:02:28.7]} 10. d4
{[%clk 0:02:31.1]} 10... cxd4 {[%clk 0:02:27.1]} 11. cxd4 {[%clk 0:02:32]} 11...
Bb7 {[%clk 0:02:20.2]} 12. Qe2 {[%clk 0:02:11.6]} 12... Rc8 {[%clk 0:02:16.4]}
13. a3 {[%clk 0:02:06.7]} 13... Qb6 {[%clk 0:02:04.8]} 14. Qd3 {[%clk
0:02:04.6]} 14... Rfd8 {[%clk 0:01:50.8]} 15. b3 {[%clk 0:02:01.8]} 15... a5
{[%clk 0:01:20.2]} 16. Bb2 {[%clk 0:02:00.2]} 16... Ba6 {[%clk 0:01:18.6]} 17.
Qe3 {[%clk 0:01:55.8]} 17... b4 {[%clk 0:01:14]} 18. a4 {[%clk 0:01:52.8]} 18...
Rc7 {[%clk 0:01:06.5]} 19. h3 {[%clk 0:01:46.5]} 19... Rdc8 {[%clk 0:01:01.8]}
20. Rac1 {[%clk 0:01:08.9]} 20... h6 {[%clk 0:00:43.8]} 21. g4 {[%clk
0:01:04.2]} 21... d5 {[%clk 0:00:29.7]} 22. e5 {[%clk 0:00:58.6]} 22... Nh7
{[%clk 0:00:29.1]} 23. Nf1 {[%clk 0:00:41.6]} 23... Ng5 {[%clk 0:00:27.6]} 24.
Ng3 {[%clk 0:00:34.7]} 24... Nxf3+ {[%clk 0:00:21.5]} 25. Qxf3 {[%clk
0:00:33.2]} 25... Nxd4 {[%clk 0:00:20.3]} 26. Bxd4 {[%clk 0:00:26.2]} 26... Qxd4
{[%clk 0:00:16.8]} 27. Rcd1 {[%clk 0:00:20.6]} 27... Qb2 {[%clk 0:00:13.6]} 28.
Qe3 {[%clk 0:00:09.3]} 28... Rc3 {[%clk 0:00:13.6]} 29. Qb6 {[%clk 0:00:08.7]}
29... R8c6 {[%clk 0:00:09.9]} 30. Qb8+ {[%clk 0:00:08.7]} 30... Kh7 {[%clk
0:00:09.8]} 31. Qe8 {[%clk 0:00:08]} 31... Bh4 {[%clk 0:00:09.2]} 32. Qxf7
{[%clk 0:00:06.6]} 32... Bxg3 {[%clk 0:00:09]} 33. fxg3 {[%clk 0:00:07.1]} 33...
Rxg3 {[%clk 0:00:09.4]} 34. Qf2 {[%clk 0:00:03.1]} 34... Qxb3 {[%clk 0:00:08.9]}
35. Rd2 {[%clk 0:00:01.9]} 35... Rgc3 {[%clk 0:00:07.8]} 0-1

[Event "Late-Titled-Tuesday-Blitz-January-16-2024"]
[Site "Chess.com"]
[Date "2024.01.16"]
[Round "3"]
[White "rdarruda"]
[Black "Rutricks"]
[Result "0-1"]
[WhiteElo "2505"]
[BlackElo "2718"]
[TimeControl "180+1"]
[EndTime "14:27:35 PST"]
[Termination "Rutricks won by checkmate"]

1. d4 {[%clk 0:03:00.9]} 1... g6 {[%clk 0:02:31.1]} 2. e4 {[%clk 0:03:00]} 2...
Bg7 {[%clk 0:02:31.8]} 3. Nc3 {[%clk 0:03:00.2]} 3... c6 {[%clk 0:02:32.3]} 4.
Nf3 {[%clk 0:02:59.6]} 4... d5 {[%clk 0:02:33]} 5. Bd3 {[%clk 0:02:58.3]} 5...
dxe4 {[%clk 0:02:33.9]} 6. Nxe4 {[%clk 0:02:57.2]} 6... Nf6 {[%clk 0:02:34.8]}
7. c3 {[%clk 0:02:55.6]} 7... O-O {[%clk 0:02:35.2]} 8. O-O {[%clk 0:02:54.9]}
8... Nbd7 {[%clk 0:02:36.1]} 9. Bf4 {[%clk 0:02:53]} 9... Nd5 {[%clk 0:02:34.9]}
10. Bg3 {[%clk 0:02:52.2]} 10... h6 {[%clk 0:02:34]} 11. Ned2 {[%clk 0:02:46.8]}
11... c5 {[%clk 0:02:32.8]} 12. Re1 {[%clk 0:02:42.6]} 12... cxd4 {[%clk
0:02:33.2]} 13. Nxd4 {[%clk 0:02:42.7]} 13... e5 {[%clk 0:02:32.8]} 14. N4b3
{[%clk 0:02:38.5]} 14... Nf4 {[%clk 0:02:32.3]} 15. Bf1 {[%clk 0:02:31.5]} 15...
g5 {[%clk 0:02:32.5]} 16. Ne4 {[%clk 0:02:29.3]} 16... Nb6 {[%clk 0:02:25.2]}
17. Nd6 {[%clk 0:02:27.6]} 17... Qc7 {[%clk 0:02:13.2]} 18. Nxc8 {[%clk
0:02:25.9]} 18... Raxc8 {[%clk 0:02:14.1]} 19. Qf3 {[%clk 0:02:19.2]} 19... Na4
{[%clk 0:02:11.9]} 20. Bxf4 {[%clk 0:02:10.8]} 20... exf4 {[%clk 0:02:12]} 21.
Re2 {[%clk 0:02:09.1]} 21... Rfe8 {[%clk 0:02:00.5]} 22. Rae1 {[%clk 0:02:08.9]}
22... Rxe2 {[%clk 0:01:55.8]} 23. Rxe2 {[%clk 0:02:08.8]} 23... b5 {[%clk
0:01:54.7]} 24. Rd2 {[%clk 0:01:52.7]} 24... a6 {[%clk 0:01:20.5]} 25. Qg4
{[%clk 0:01:52]} 25... Re8 {[%clk 0:01:20.2]} 26. h4 {[%clk 0:01:42.6]} 26...
Bf6 {[%clk 0:01:15.4]} 27. hxg5 {[%clk 0:01:41.7]} 27... hxg5 {[%clk 0:01:16.3]}
28. Bd3 {[%clk 0:01:30.2]} 28... Kg7 {[%clk 0:00:25.7]} 29. Bf5 {[%clk
0:01:28.5]} 29... Qe5 {[%clk 0:00:15.3]} 30. Bd3 {[%clk 0:01:04.3]} 30... Qe1+
{[%clk 0:00:13.9]} 31. Bf1 {[%clk 0:01:03.6]} 31... Qb1 {[%clk 0:00:13.4]} 32.
Rd1 {[%clk 0:00:38.3]} 32... Qxb2 {[%clk 0:00:12.9]} 33. c4 {[%clk 0:00:38.9]}
33... Nc3 {[%clk 0:00:12.9]} 34. Rd7 {[%clk 0:00:38]} 34... Qb1 {[%clk
0:00:08.2]} 35. Qh5 {[%clk 0:00:33.6]} 35... Ne2+ {[%clk 0:00:07.2]} 36. Kh2
{[%clk 0:00:31.4]} 36... Rh8 {[%clk 0:00:07.6]} 37. Rxf7+ {[%clk 0:00:31.4]}
37... Kg8 {[%clk 0:00:08.1]} 38. Bxe2 {[%clk 0:00:23.9]} 38... Rxh5+ {[%clk
0:00:08.1]} 39. Bxh5 {[%clk 0:00:24.8]} 39... bxc4 {[%clk 0:00:07.3]} 40. Nc5
{[%clk 0:00:23.7]} 40... Bd4 {[%clk 0:00:02.8]} 41. Ne6 {[%clk 0:00:23.1]} 41...
Bxf2 {[%clk 0:00:03.3]} 42. Rf8+ {[%clk 0:00:15.2]} 42... Kh7 {[%clk 0:00:03.9]}
43. Rf7+ {[%clk 0:00:14.9]} 43... Kh6 {[%clk 0:00:04.5]} 44. Bg4 {[%clk
0:00:12.5]} 44... Qg1+ {[%clk 0:00:03.8]} 45. Kh3 {[%clk 0:00:12.7]} 45... Qh1#
{[%clk 0:00:04.7]} 0-1